Cogmind - Beta 14 @@@ ROGUE MODE // 2025.05.01 @ 14:28:15 Player: jumpy Result: Destroyed by Y-64 Sentinel with Wave Gun Performance ------------- Evolutions (5) 2500 Regions Visited (10) 2000 Robots Destroyed (66) 330 Value Destroyed (2376) 2376 Prototype IDs (4) 80 Alien Tech Used (0) 0 Bonus (0) 0 TOTAL SCORE: 7286 Bonus ------- None Cogmind --------- Core Integrity 0/1000 Matter 51/300 Energy 100/100 System Corruption 4% Temperature Cool (9) Movement Core (50) Location -5/Upper Caves Parts ------- > --- POWER (1) -------- (None) > --- PROPULSION (4) --- (None) > --- UTILITY (9) ------ Enhanced Optical Array Improved Signal Interpreter Improved Terrain Scan Processor > --- WEAPON (3) ------- (None) > --- INVENTORY (5) ---- Angular Momentum Engine Improved Signal Interpreter Advanced Signal Interpreter Peak State ------------ > --- POWER ------------ Angular Momentum Engine > --- PROPULSION ------- Carbon-fiber Leg Carbon-fiber Leg Flexi-carbon Leg Flexi-carbon Leg > --- UTILITY ---------- High-capacity Storage Unit Enhanced Optical Array Improved Signal Interpreter Improved Terrain Scan Processor Seismic Detector Improved Light Armor Plating > --- WEAPON ----------- Heavy Laser Advanced Assault Cannon Power Sword > --- INVENTORY -------- Angular Momentum Engine Improved Signal Interpreter Advanced Signal Interpreter Mass Driver Long-range Missile Launcher Long-range Missile Launcher Great Axe [Rating: 53] Favorites ----------- Power Hybrid Deuterium Engine Engine Hybrid Deuterium Engine Power Core Light Nuclear Core Reactor Light Antimatter Reactor Propulsion Improved Treads Treads Improved Treads Leg Aluminum Leg Wheel Wheel Flight Unit Improved VTOL Module Utility Seismic Detector Device Seismic Detector Storage High-capacity Storage Unit Processor Improved Signal Interpreter Protection Improved Light Armor Plating Weapon Advanced Beam Rifle Energy Gun Advanced Beam Rifle Ballistic Gun Assault Rifle Ballistic Cannon Flak Cannon Launcher Grenade Launcher Slashing Weapon Power Sword Build | -11 -10 -9 -9 -8 -7 -7 -7 -6 -5 -5 ------- Run | Yrd Mat Mat Min Mat Fac Low Low Fac Fac Upp Slots Evolved 10 | . . 2 . 2 2 . . 2 2 . Power . | . . . . . . . . . . . Propulsion 2 | . . . . 2 . . . . . . Utility 7 | . . 2 . . 2 . . 2 1 . Weapon 1 | . . . . . . . . . 1 . Parts Attached 71 | 8 1 3 1 13 2 12 3 13 13 2 Power 15 | 1 1 . . 2 . 4 1 1 5 . Engine 12 | 1 1 . . 2 . 3 1 . 4 . Core 2 | . . . . . . 1 . 1 . . Reactor 1 | . . . . . . . . . 1 . Propulsion 21 | 2 . . 1 6 . 1 1 6 4 . Treads 6 | . . . . 4 . 1 1 . . . Leg 13 | 2 . . 1 1 . . . 6 3 . Wheel 1 | . . . . . . . . . 1 . Hover . | . . . . . . . . . . . Flight 1 | . . . . 1 . . . . . . Utility 13 | 2 . 2 . 2 2 . 1 4 . . Device 4 | 1 . 1 . . . . 1 1 . . Storage 2 | 1 . . . 1 . . . . . . Processor 5 | . . 1 . 1 1 . . 2 . . Hackware . | . . . . . . . . . . . Protection 2 | . . . . . 1 . . 1 . . Artifact . | . . . . . . . . . . . Weapon 22 | 3 . 1 . 3 . 7 . 2 4 2 Energy Gun 6 | . . 1 . 2 . 2 . 1 . . Energy Cannon . | . . . . . . . . . . . Ballistic Gun 3 | 3 . . . . . . . . . . Ballistic Cannon 6 | . . . . 1 . 3 . 1 . 1 Launcher 4 | . . . . . . 2 . . 1 1 Special Weapon . | . . . . . . . . . . . Impact Weapon . | . . . . . . . . . . . Slashing Weapon 3 | . . . . . . . . . 3 . Piercing Weapon . | . . . . . . . . . . . Special Melee Weapon . | . . . . . . . . . . . Unidentified Prototypes 2 | . . 1 . 1 . . . . . . Corrupted Parts 1 | . . . . . . . . . 1 . System Corruption 1 | . . . . . . . . . 1 . Parts Lost 38 | . . . . 3 . 16 . 2 13 4 Power 9 | . . . . . . 4 . 1 3 1 Propulsion 11 | . . . . 1 . 5 . . 4 1 Utility 7 | . . . . 1 . 3 . 1 2 . Weapon 11 | . . . . 1 . 4 . . 4 2 Highest Loss Streak 12 | . . . . 2 . 11 . 1 12 2 To Critical Strikes 1 | . . . . . . . . . . 1 Average Slot Usage (%) 76 | . 100 100 100 84 81 77 46 61 61 23 Engine 7 | . 14 11 11 9 7 6 7 5 1 . Treads 11 | . . . . 14 30 23 7 4 . . Leg 8 | . 28 22 22 7 . . . 7 15 . Device 10 | . 14 22 22 18 7 5 7 10 3 . Storage 7 | . 14 11 11 9 7 7 7 6 3 . Processor 11 | . . 11 11 9 7 13 7 15 17 17 Protection 2 | . . . . . 4 5 . 1 3 . Energy Gun 5 | . . 6 11 13 7 5 . 1 3 . Ballistic Gun 4 | . 28 15 11 1 . . . . . . Ballistic Cannon 4 | . . . . 2 7 6 7 6 3 4 Peak Build Rating 53 | 7 7 13 13 27 32 34 14 45 53 24 Average Rating 22 | 5 7 11 13 20 28 28 13 28 38 17 On Entrance 16 | . 7 7 13 13 26 32 8 14 44 19 Naked Turns . | . . . . . . . . . . . Heaviest Build 70 | 13 15 16 16 54 56 60 54 61 70 18 Greatest Support 90 | 20 20 20 20 90 90 90 23 65 70 10 Greatest Overweight (x) 18 | . . . . 1 . 18 2 3 7 2 Average Overweight (x) . | . . . . . . . 2 1 . 1 Largest Inventory Capacity 20 | 8 8 8 8 20 20 20 20 20 20 5 Average Capacity 15 | 7 8 8 8 15 20 20 20 20 15 5 Most Carried 15 | 5 8 8 8 12 14 15 6 7 8 5 Average Carried 8 | 3 7 7 7 8 12 12 4 3 6 3 Final Capacity 20 | 8 8 8 8 20 20 20 20 20 5 5 Final Carried 14 | 5 8 8 8 11 14 7 4 7 5 3 Class Distribution -------------------- 87% | Mutant 12% | Scavenger-Mutant Dominant Class ---------------- Mutant | -10/Materials Mutant | -9/Materials Mutant | -9/Mines Mutant | -8/Materials Mutant | -7/Factory Mutant | -7/Lower Caves Mutant | -7/Lower Caves Mutant | -6/Factory Scavenger-Mutant | -5/Factory Mutant | -5/Upper Caves Resources | -11 -10 -9 -9 -8 -7 -7 -7 -6 -5 -5 ----------- Run | Yrd Mat Mat Min Mat Fac Low Low Fac Fac Upp Matter Collected 1316 | 274 66 . 179 156 82 212 . 117 169 61 Remotely . | . . . . . . . . . . . Salvage Created 2415 | 153 163 110 243 363 142 640 . 222 249 130 Parts 98 | 4 6 9 8 16 4 21 . 13 13 4 Haulers Intercepted 2 | . 1 . . 1 . . . . . . Recyclers Shooed . | . . . . . . . . . . . Parts Field Recycled . | . . . . . . . . . . . Retrieved Matter . | . . . . . . . . . . . Parts Self-Destructed 26 | . . . . . . 26 . . . . Prevented 1 | . . . . . . . . . . 1 Kills | -11 -10 -9 -9 -8 -7 -7 -7 -6 -5 -5 ------- Run | Yrd Mat Mat Min Mat Fac Low Low Fac Fac Upp Combat Hostiles Destroyed 55 | . 2 4 6 6 3 18 . 6 5 5 Melee 5 | . . . . . . . . . 5 . Guns 21 | . 2 4 6 4 1 2 . 2 . . Cannons 18 | . . . . . 2 8 . 4 . 4 AOE 11 | . . . . 2 . 8 . . . 1 Classes Destroyed 12 | 2 3 2 . . . 2 . . 3 . Worker 1 | . . . . . . . . . 1 . Builder 1 | . . . . . . . . . 1 . Tunneler 4 | 3 . . . 1 . . . . . . Hauler 2 | . 1 . . 1 . . . . . . Recycler 2 | 1 . . 1 . . . . . . . Watcher 1 | . 1 . . . . . . . . . Swarmer 14 | . . 3 4 . . 1 . 3 . 3 Grunt 26 | . 2 . 2 3 . 11 . 3 4 1 Brawler 2 | . . . . . . 2 . . . . Duelist 3 | . . . . . . 3 . . . . Sentry 8 | . . 1 . 3 3 1 . . . . Hunter 1 | . . . . . . . . . 1 . Thug 1 | . . . . . . . . . . 1 Best Kill Streak 7 | 3 2 3 4 3 1 7 . 3 6 4 Combat Bots Only 7 | . 2 3 4 2 1 7 . 3 4 4 Max Kills in Single Turn 3 | 1 1 1 1 3 1 2 . 1 1 2 Gunslinging . | . . . . . . . . . . . Exploded 2 | . . . . 2 . 2 . . . 1 Melee 1 | . . . . . . . . . 1 . Uniques/NPCs Destroyed . | . . . . . . . . . . . Combat | -11 -10 -9 -9 -8 -7 -7 -7 -6 -5 -5 -------- Run | Yrd Mat Mat Min Mat Fac Low Low Fac Fac Upp Hostile Shots Fired 582 | . 8 16 19 36 135 159 . 31 133 45 Missed 178 | . 5 5 6 13 53 44 . 9 32 11 Damage Taken 6714 | . 38 134 136 607 613 1980 . 355 2013 838 Core 1868 | . . 55 27 160 62 492 . 59 503 510 Absorbed by Shields . | . . . . . . . . . . . Core Remaining (%) 77 | 100 100 . 79 70 . . 20 93 . . Volleys Fired 184 | 11 9 9 14 24 18 48 . 16 18 17 Largest 2 | 2 2 2 2 2 2 2 . 2 2 2 Hottest 117 | 40 40 81 81 111 96 105 . 117 117 100 Shots Fired 296 | 22 18 18 28 41 36 69 . 20 27 17 Gun 190 | 22 18 18 28 38 18 22 . 9 17 . Cannon 96 | . . . . 3 18 41 . 11 9 14 Launcher 10 | . . . . . . 6 . . 1 3 Special . | . . . . . . . . . . . Kinetic 168 | 22 18 9 14 12 18 41 . 11 9 14 Thermal 102 | . . 9 14 17 18 18 . 9 17 . Explosive 10 | . . . . . . 6 . . 1 3 Electromagnetic 16 | . . . . 12 . 4 . . . . Robot Hit Streak 22 | 6 14 5 15 16 20 22 . 7 11 9 Robot Miss Streak 7 | 2 2 2 2 4 2 7 . 1 4 1 Penetration Max . | . . . . . . . . . . . Secondary Targets . | . . . . . . . . . . . Shots Hit Robots 230 | 13 14 10 18 30 31 52 . 15 33 14 Core Hits 141 | 5 7 5 8 8 9 65 . 10 13 11 Critical Kills . | . . . . . . . . . . . Critical Parts Destroyed . | . . . . . . . . . . . Critical Strikes 11 | . . . 1 2 2 1 . 2 3 . Burn 5 | . . . 1 1 1 1 . . 1 . Blast 4 | . . . . 1 1 . . 2 . . Sever 2 | . . . . . . . . . 2 . Melee Attacks 17 | . . . . . . . . . 17 . Impact . | . . . . . . . . . . . Slashing 17 | . . . . . . . . . 17 . Piercing . | . . . . . . . . . . . Sneak Attacks 2 | . . . . . . . . . 2 . Combat Hostiles . | . . . . . . . . . . . Follow-up Attacks . | . . . . . . . . . . . Damage Inflicted 6308 | 156 180 164 334 966 588 1739 . 350 1256 575 Guns 2204 | 156 180 164 334 475 320 209 . 174 192 . Cannons 1815 | . . . . 35 268 717 . 176 172 447 Explosions 1577 | . . . . 456 . 813 . . 215 93 Melee 677 | . . . . . . . . . 677 . Ramming 35 | . . . . . . . . . . 35 Kinetic 2353 | 156 180 60 78 99 268 717 . 176 172 447 Thermal 1906 | . . 104 256 720 320 140 . 174 192 . Explosive 1121 | . . . . . . 813 . . 215 93 Electromagnetic 216 | . . . . 147 . 69 . . . . Impact . | . . . . . . . . . . . Slashing 677 | . . . . . . . . . 677 . Piercing . | . . . . . . . . . . . Highest Corruption 4 | . . . . . . . . . 1 4 Average Corruption 2 | . . . . . . . . . 1 2 Corruption Purged . | . . . . . . . . . . . Corruption Blocked . | . . . . . . . . . . . Effects 5 | . . . . . . . . . 1 4 Message Errors 1 | . . . . . . . . . . 1 Matter Fused 1 | . . . . . . . . . . 1 Energy Discharges 2 | . . . . . . . . . 1 1 Weapon Failures 1 | . . . . . . . . . . 1 Overload Shots . | . . . . . . . . . . . Overflow Damage 395 | . . . . 284 . . . . 97 14 Projectiles 3 | . . . . . . . . . . 3 Explosions 295 | . . . . 284 . . . . . 11 Melee 97 | . . . . . . . . . 97 . Knockbacks 20 | . . . . . . 11 . . 6 3 Impact . | . . . . . . . . . . . Kinetic 17 | . . . . . . 11 . . 3 3 Secondary 3 | . . . . . . . . . 3 . Self-Inflicted Damage 413 | . . . . 199 . 35 . . 51 128 Shots 7 | . . . . 2 . 2 . . 1 2 Rammed 13 | . . . . . . . . . . 13 Targets Rammed 14 | . . . . 1 . . . . . 13 Kicked 1 | . . . . 1 . . . . . . Crushed . | . . . . . . . . . . . Highest Temperature 331 | . 2 75 108 117 150 179 . 57 331 . Average Temperature 58 | . 2 36 46 33 49 52 . 31 134 . Received Heat Transfer 2172 | . 21 27 27 171 180 822 . 54 681 189 Effects 1 | . . . . . . . . . 1 . Shutdowns 1 | . . . . . . . . . 1 . Siege Activations . | . . . . . . . . . . . Robots Corrupted . | . . . . . . . . . . . Combat Hostiles . | . . . . . . . . . . . Parts Fried . | . . . . . . . . . . . Impact Corruptions . | . . . . . . . . . . . Robots Melted . | . . . . . . . . . . . Combat Hostiles . | . . . . . . . . . . . Parts Melted 4 | . . . 2 1 . . . 1 . . Heat Transferred 3247 | . . 185 518 805 666 333 . 296 444 . Parts Sabotaged . | . . . . . . . . . . . Parts Stolen . | . . . . . . . . . . . Parts Stripped . | . . . . . . . . . . . Power Chain Reactions . | . . . . . . . . . . . Alert | -11 -10 -9 -9 -8 -7 -7 -7 -6 -5 -5 ------- Run | Yrd Mat Mat Min Mat Fac Low Low Fac Fac Upp Peak Influence 322 | 20 111 182 165 322 175 . . 130 110 . Initial 70 | . 13 46 70 19 60 . . 21 63 . Average 92 | 7 50 73 114 171 99 . . 39 88 . Maximum Alert Level 1 | . . . . 1 . . . . . . Low Security (%) 93 | 100 100 100 100 65 100 . . 100 100 . Level 1 6 | . . . . 34 . . . . . . Level 2 . | . . . . . . . . . . . Level 3 . | . . . . . . . . . . . Level 4 . | . . . . . . . . . . . Level 5 . | . . . . . . . . . . . High Security . | . . . . . . . . . . . Max Security . | . . . . . . . . . . . Squads Dispatched 4 | . . . . 1 . . . 2 1 . Investigation 1 | . . . . . . . . 1 . . Extermination 1 | . . . . . . . . 1 . . Reinforcement 1 | . . . . . . . . . 1 . Assault 1 | . . . . 1 . . . . . . Garrison . | . . . . . . . . . . . Intercept . | . . . . . . . . . . . Searches Triggered . | . . . . . . . . . . . Construction Impeded 1 | . . . . . . . . . 1 . Haulers Reinforced . | . . . . . . . . . . . Active Scanning Responses . | . . . . . . . . . . . Cargo Convoy Interrupts . | . . . . . . . . . . . Stealth | -11 -10 -9 -9 -8 -7 -7 -7 -6 -5 -5 --------- Run | Yrd Mat Mat Min Mat Fac Low Low Fac Fac Upp Distress Signals 2 | . . 1 . . 1 . . . . . Communications Jammed . | . . . . . . . . . . . Distress Signals . | . . . . . . . . . . . Times Spotted 71 | . 3 5 6 8 4 22 1 7 8 7 Peak Tracking Total 11 | . 2 7 4 3 1 11 1 3 4 5 Tactical Retreats 3 | . . 1 . . . 2 . . . . Traps | -11 -10 -9 -9 -8 -7 -7 -7 -6 -5 -5 ------- Run | Yrd Mat Mat Min Mat Fac Low Low Fac Fac Upp Traps Triggered 3 | . . . . 1 . . . . 2 . Indirectly . | . . . . . . . . . . . Trap Hack Attempts . | . . . . . . . . . . . Triggered . | . . . . . . . . . . . Disarmed . | . . . . . . . . . . . Reprogrammed . | . . . . . . . . . . . Reused . | . . . . . . . . . . . Traps Extracted . | . . . . . . . . . . . Installed . | . . . . . . . . . . . Triggered 1 | . . . . . . 1 . . . . Machines | -11 -10 -9 -9 -8 -7 -7 -7 -6 -5 -5 ---------- Run | Yrd Mat Mat Min Mat Fac Low Low Fac Fac Upp Machines Disabled 4 | . . . . 4 . . . . . . Max in Single Turn 3 | . . . . 3 . . . . . . Garrison Access 1 | . . . . 1 . . . . . . Machines Repaired . | . . . . . . . . . . . Machines Dismantled . | . . . . . . . . . . . Machines Sabotaged . | . . . . . . . . . . . Overloaded Fab Kills . | . . . . . . . . . . . Hacking | -11 -10 -9 -9 -8 -7 -7 -7 -6 -5 -5 --------- Run | Yrd Mat Mat Min Mat Fac Low Low Fac Fac Upp Machines Accessed 8 | . 2 1 . 2 1 . . 2 . . Terminals 6 | . 2 1 . 2 . . . 1 . . Fabricators 1 | . . . . . 1 . . . . . Repair Stations 1 | . . . . . . . . 1 . . Recycling Units . | . . . . . . . . . . . Scanalyzers . | . . . . . . . . . . . Garrison Access . | . . . . . . . . . . . Total Hacks 18 | . 4 5 . 4 1 . . 4 . . Successful 7 | . 3 1 . 1 1 . . 1 . . Failed 11 | . 1 4 . 3 . . . 3 . . Catastrophic . | . . . . . . . . . . . Database Lockouts . | . . . . . . . . . . . Manual 18 | . 5 5 . 5 . . . 3 . . Terminals 16 | . 4 5 . 4 . . . 3 . . Fabricators 1 | . . . . . 1 . . . . . Repair Stations 1 | . . . . . . . . 1 . . Recycling Units . | . . . . . . . . . . . Scanalyzers . | . . . . . . . . . . . Garrison Access . | . . . . . . . . . . . Terminal Hacks 5 | . 3 1 . . . . . 1 . . Robot Analysis 4 | . 3 . . . . . . 1 . . Prototype ID Bank 1 | . . 1 . . . . . . . . Fabricator Hacks 1 | . . . . . 1 . . . . . Network Status 1 | . . . . . 1 . . . . . Repair Station Hacks . | . . . . . . . . . . . Recycling Unit Hacks . | . . . . . . . . . . . Scanalyzer . | . . . . . . . . . . . Garrison Access Hacks . | . . . . . . . . . . . Unauthorized Hacks 1 | . . . . 1 . . . . . . Terminals 1 | . . . . 1 . . . . . . Assimilate 1 | . . . . 1 . . . . . . Fabricators . | . . . . . . . . . . . Repair Stations . | . . . . . . . . . . . Recycling Units . | . . . . . . . . . . . Scanalyzers . | . . . . . . . . . . . Garrison Access . | . . . . . . . . . . . Data Cores Recovered . | . . . . . . . . . . . Used . | . . . . . . . . . . . Hacking Detections 5 | . 1 1 . 1 . . . 2 . . Full Trace Events 1 | . . . . . . . . 1 . . Feedback Events . | . . . . . . . . . . . Feedback Blocked . | . . . . . . . . . . . Robot Schematics Acquired . | . . . . . . . . . . . Robots Built . | . . . . . . . . . . . Authchips . | . . . . . . . . . . . Time . | . . . . . . . . . . . Total Robot Build Rating . | . . . . . . . . . . . Part Schematics Acquired . | . . . . . . . . . . . Parts Built . | . . . . . . . . . . . Authchips . | . . . . . . . . . . . Time . | . . . . . . . . . . . Total Part Build Rating . | . . . . . . . . . . . Parts Repaired . | . . . . . . . . . . . Time . | . . . . . . . . . . . Parts Recycled . | . . . . . . . . . . . Recycled Matter . | . . . . . . . . . . . Retrieved Matter . | . . . . . . . . . . . Retrieved Components . | . . . . . . . . . . . Parts Scanalyzed . | . . . . . . . . . . . Part Schematics Acquired . | . . . . . . . . . . . Parts Damaged . | . . . . . . . . . . . Bothacking | -11 -10 -9 -9 -8 -7 -7 -7 -6 -5 -5 ------------ Run | Yrd Mat Mat Min Mat Fac Low Low Fac Fac Upp Used RIF Installer . | . . . . . . . . . . . Robots Hacked . | . . . . . . . . . . . Non-combat . | . . . . . . . . . . . Combat . | . . . . . . . . . . . Robot Hacks Applied . | . . . . . . . . . . . Relay Couplers Released 2 | . . . . 2 . . . . . . Machine Destruction 2 | . . . . 2 . . . . . . Fabnet Peak Effective % . | . . . . . . . . . . . Robots Rewired 1 | . . . . . 1 . . . . . Allies Hacked . | . . . . . . . . . . . Hacks Repelled . | . . . . . . . . . . . Allies | -11 -10 -9 -9 -8 -7 -7 -7 -6 -5 -5 -------- Run | Yrd Mat Mat Min Mat Fac Low Low Fac Fac Upp Total Allies 1 | . . . . . 1 . . . . . Largest Group 1 | . . . . . 1 . . . . . Highest-Rated Group 16 | . . . . . 16 . . . . . Highest-Rated Ally 16 | . . . . . 16 . . . . . Total Orders . | . . . . . . . . . . . Ally Attacks 4 | . . . . . 4 . . . . . Total Damage 64 | . . . . . 64 . . . . . Kills . | . . . . . . . . . . . Allies Corrupted . | . . . . . . . . . . . Allies Melted . | . . . . . . . . . . . Intel | -11 -10 -9 -9 -8 -7 -7 -7 -6 -5 -5 ------- Run | Yrd Mat Mat Min Mat Fac Low Low Fac Fac Upp Robot Analysis Total 4 | . 3 . . . . . . 1 . . Derelict Logs Recovered 4 | . . . 1 . . 2 1 . . . Drone Launches . | . . . . . . . . . . . Drone Recoveries . | . . . . . . . . . . . Exploration | -11 -10 -9 -9 -8 -7 -7 -7 -6 -5 -5 ------------- Run | Yrd Mat Mat Min Mat Fac Low Low Fac Fac Upp Turns Passed 5409 | 127 359 192 636 713 430 1352 215 787 374 224 Spaces Moved 2772 | 77 148 131 482 345 215 696 67 300 189 122 Core 146 | 21 . . . . . 4 . . 11 110 Treads 1371 | . . . . 230 215 692 67 167 . . Legs 1172 | 56 148 131 482 115 . . . 133 107 . Wheels 83 | . . . . . . . . . 71 12 Hover . | . . . . . . . . . . . Flight . | . . . . . . . . . . . Fastest Speed 50 | 50 120 120 120 120 152 150 320 120 80 50 Average Speed 160 | 100 120 120 120 168 152 174 320 240 115 141 Slowest Speed 950 | 120 120 120 120 225 152 950 320 330 400 150 Overloaded Moves . | . . . . . . . . . . . Propulsion Burnouts . | . . . . . . . . . . . Robots Hopped . | . . . . . . . . . . . Cave-ins Triggered . | . . . . . . . . . . . Exploration Rate (%) 28 | 5 28 10 96 27 6 88 13 8 7 25 Regions Visited 10 Branch Regions 4 Pre-discovered Areas . | . . . . . . . . . . . Known Exits Taken 8 | . . 1 1 1 1 1 1 1 1 . Unknown Exits Taken 2 | 1 1 . . . . . . . . . Scrap Searched 4 | . . . 2 . . 1 . . . 1 Spaces Dug . | . . . . . . . . . . . Terrain Destroyed 149 | . . . . 37 . 47 . 2 15 48 Melee . | . . . . . . . . . . . Projectile 8 | . . . . . . 2 . 2 1 3 AOE 141 | . . . . 37 . 45 . . 14 45 Terrain Rammed . | . . . . . . . . . . . Walls Destroyed . | . . . . . . . . . . . Machines Disabled . | . . . . . . . . . . . Actions | -11 -10 -9 -9 -8 -7 -7 -7 -6 -5 -5 --------- Run | Yrd Mat Mat Min Mat Fac Low Low Fac Fac Upp Total 3415 | 100 312 148 511 438 282 773 69 342 286 154 Wait 297 | . 146 2 13 35 41 12 . 3 45 . Move 2762 | 76 147 130 481 344 214 695 66 299 188 122 Hop . | . . . . . . . . . . . Pick Up 40 | 5 6 3 1 10 4 3 . 6 2 . Fast Attach 29 | 7 . . . 5 2 . . 8 7 . Attach 22 | . . 2 . 2 . 7 3 3 3 2 Detach 1 | . . . . . . . . 1 . . Swap 20 | 1 1 1 1 6 . 5 . 2 3 . Drop 27 | . 3 1 1 11 1 3 . 4 3 . Fire 184 | 11 9 9 14 24 18 48 . 16 18 17 Melee 17 | . . . . . . . . . 17 . Ram 13 | . . . . . . . . . . 13 Kick 1 | . . . . 1 . . . . . . Crush . | . . . . . . . . . . . Escape Stasis . | . . . . . . . . . . . Rewire 2 | . . . . . 2 . . . . . Trap . | . . . . . . . . . . . Miscellaneous . | . . . . . . . . . . . Route ------- -11/Scrapyard -10/Materials -9/Materials -9/Mines (discovered 2 exits: *Mat x2) -8/Materials -7/Factory -7/Lower Caves -7/Lower Caves (discovered 2 exits: *Fac / Dat) -6/Factory (discovered 2 exits: *Fac / Low) -5/Factory -5/Upper Caves History --------- Turn | Location | Event 30 | -11/Scrapyard | Discovered new exit (range 15) 128 | -11/Scrapyard | Entered Materials 314 | -10/Materials | Build established: Mutant 476 | -10/Materials | Discovered new exit (range 10) 487 | -10/Materials | Entered another Materials area 487 | -9/Materials | Evolved 2 slots: Utility x2 644 | -9/Materials | Discovered new exit (range 11) 656 | -9/Materials | Identified exit to Mines 679 | -9/Materials | Entered Mines 902 | -9/Mines | YI-UF0 nonchalantly dropped a Grenade Launcher on the ground 963 | -9/Mines | Learned location of 1 exit from Lower Caves 1006 | -9/Mines | Discovered new exit (range 5) 1294 | -9/Mines | Discovered new exit (range 8) 1311 | -9/Mines | Identified exit to Materials 1315 | -9/Mines | Entered Materials 1315 | -8/Materials | Evolved 2 slots: Propulsion x2 1556 | -8/Materials | Met 7R-MNS 1982 | -8/Materials | Discovered new exit (range 16) 2026 | -8/Materials | Identified exit to Factory 2028 | -8/Materials | Entered Factory 2028 | -7/Factory | Evolved 2 slots: Utility x2 2029 | -7/Factory | Caught up to 7R-MNS 2335 | -7/Factory | Discovered new exit (range 11) 2455 | -7/Factory | Identified exit to Lower Caves 2458 | -7/Factory | Entered Lower Caves 2459 | -7/Lower Caves | Identified exit to Lower Caves 2517 | -7/Lower Caves | Learned location of 1 exit from Factory 3416 | -7/Lower Caves | Attracted the attention of an 0b10 checkpoint 3419 | -7/Lower Caves | Attracted the attention of an 0b10 outpost 3496 | -7/Lower Caves | Core integrity fell below 50% 3502 | -7/Lower Caves | Destroyed 7 combat bots 3540 | -7/Lower Caves | Lost 11 parts (2p3n3u3w) 3644 | -7/Lower Caves | Learned Factory stockpile data 3810 | -7/Lower Caves | Entered another Lower Caves area 3818 | -7/Lower Caves | Encountered a Warlord checkpoint 3983 | -7/Lower Caves | Discovered new exit (range 14) 3986 | -7/Lower Caves | Identified exit to Data Miner 4021 | -7/Lower Caves | Identified exit to Factory 4025 | -7/Lower Caves | Entered Factory 4025 | -6/Factory | Evolved 2 slots: Utility x2 4026 | -6/Factory | Identified exit to Lower Caves 4776 | -6/Factory | Discovered new exit (range 20) 4811 | -6/Factory | Identified exit to Factory 4812 | -6/Factory | Entered another Factory area 4812 | -5/Factory | Evolved 2 slots: Utility x1, Weapon x1 4886 | -5/Factory | Build established: Scavenger-Mutant 5101 | -5/Factory | Core integrity fell below 50% 5114 | -5/Factory | Lost 12 parts (2p4n2u4w) 5168 | -5/Factory | Discovered new exit (range 22) 5184 | -5/Factory | Identified exit to Upper Caves 5186 | -5/Factory | Entered Upper Caves 5346 | -5/Upper Caves | Build established: Mutant 5385 | -5/Upper Caves | Attracted the attention of an 0b10 checkpoint 5397 | -5/Upper Caves | Core integrity fell below 20% 5410 | -5/Upper Caves | Destroyed by Y-64 Sentinel with Wave Gun Last Messages --------------- 05390_ Slug penetrates Y-64 Sentinel. 05390_ Penetrated by Slug. 05393_ Critical hit (Destroy). 05393_ Mass Driver destroyed. 05396_ Penetrated by Slug. 05396_ Lrn. Missile Launcher destroyed. 05396_ Destroyed Lrn. Missile Launcher. 05398_ Penetrated by Slug. 05399_ Slammed into Y-64 Sentinel. 05400_ The unstable cave ceiling collapses. 05400_ Slammed into Y-64 Sentinel. 05401_ Destabilizing: System corrupted (+1). 05402_ Slammed into Y-64 Sentinel. 05404_ Penetrated by Slug. 05404_ Slammed into Y-64 Sentinel. 05406_ The unstable cave ceiling collapses. 05406_ Slammed into Y-64 Sentinel. 05407_ Critical hit (Burn: +37). 05407_ Penetrated by Slug. 05407_ Slammed into Y-64 Sentinel. Map ----- +----------------------------------------------------+ | | | | | | | | | | | | | | | ?????????????????????????????????????????????????? | | ?????????????????????????????????????????????????? | | ?????????????????????????????????????????????????? | | ?????????????????????????????????????????????????? | | ?????????????????????????????????????????????????? | | ?????????????????????????????????????????????????? | | ?????????????????????????????????????????????????? | | ?????????????????????????????????????????????????? | | ?????????????????????????????????????????????????? | | ?????????????????????????????????????????????????? | | ?????????????????????????????????????????????????? | | ?????????????????????????????????????????????????? | | ????????????????????????######???????????????????? | | ???????????????????????## ###?????????????????? | | ???????????????????????# ####?####?????????? | | ???????????????????????# ### ######???## | | ???????###?????????????# #?# ##### | | ???????# ??????????# Y #### | | ????????# ##??????# @ ## | | ?????????# ???## ### | | ?????????# ## # ## | | ??????????# # ## | | ??????????# ### | | ?????????# ##?# ### | | ????????# #####??# ####?# | | ????????## #?????# ##???## | | ?????????# #?????## #???## | | ?????????# ?????## #??## | | ????????# #?????####??# | | ????????# #???????????## | | ????????# ### #????????????### | | ????????## #??## # #??????????????## | | ?????????# ????# ## ???????????????# | | ?????????## ????? ?# $ ??????????????# | | ??????????#????? ?###########?????????????# | | ??????????????? ??????????????# ???????## | | ?????????????? ??????????????# #### | | ?????????????# ## ?????????????# | | ????????????? ?##????????????# | | ????????????# ???????????????# ### | | ?????????????? ???????????????## ##???? | | ????????????????? ??????????????????# ??##### | | ???????????????????????????????????# ????# | +----------------------------------------------------+ Best States ------------- Heat Dissipation 40 Energy Generation 21 Energy Capacity 800 Matter Stores 300 Matter Capacity 300 Sight Range 22 Robot Scan Range 14 Terrain Scan Range 20 Terrain Scan Density 110 Armor Coverage 150 Evasion (%) 55 Targeting Accuracy 6 Recoil Reduction 4 Item Schematics ----------------- None Robot Schematics ------------------ None Fabricated ------------ Nothing Alien Tech Used ----------------- None Achievements -------------- None Challenges ------------ None Game ------ Seed AssaultWarpBotcube Manual? 0 Play Time 00:32:32 Cumulative 65.0 hours Start 2025.05.01 @ 01:18:02 End 2025.05.01 @ 14:28:15 Sessions 3 Manual Loads 0 Difficulty Rogue Special Mode None Game No. 183 Rogue 183 Adventurer 0 Explorer 0 Win Type - Total 0 Types 0/0/0/0/0/0/0/0/0 Lore% 16 Gallery% 42 Achievement% 33 Wizard Run 0 Options --------- Layout 0 ASCII 0 Keyboard 0 Movement Numpad Keybinds 0 Fullscreen 2 Font 18/Terminus Map View 76x50 Zoom Use 0% Tactical HUD 1 Map Filters NONE Filters NONE Steam 1 RUN: f3734969-909e-4f2c-8c6f-256e1620ccab